fUST/lending_fUST_20260103
["ID","MTS","AMOUNT","RATE_DAILY","PERIOD"]
[400359412,1767433839275,-500.0,0.00013698,2]
[400359413,1767433839284,-500.0,0.00013698,2]
[400359414,1767433839293,-500.0,0.00013698,2]
[400359415,1767433839302,-500.0,0.00013698,2]
[400359416,1767433839312,-500.0,0.00013698,2]
[400359417,1767433839320,-500.0,0.00013698,2]
[400359418,1767433839329,-1384.5057009,0.00013699,2]
[400359419,1767433839338,-1167.579961,0.00013699,2]
[400359420,1767433839348,-500.0,0.00013699,2]
[400359421,1767433839357,-500.0,0.00013699,2]
[400359422,1767433839366,-500.0,0.00013699,2]
[400359423,1767433839375,-501.0990515,0.00013699,2]
[400359424,1767433839384,-173.31490018,0.00013821,2]
[400359425,1767433839397,-582.21198243,0.00013821,2]
[400359426,1767433839407,-1000.0,0.00013821,2]
[400359427,1767433839416,-179.18,0.00013862,2]
[400359428,1767433839427,-267.0,0.000139,2]
[400359429,1767433839437,-8421.08295374,0.00014,2]
[400359430,1767433839446,-250.0,0.00014109,2]
[400359431,1767433839455,-481.24738406,0.00014247,2]
[400359432,1767433839466,-1000.0,0.00014247,2]
[400359433,1767433839476,-267.0,0.000143,2]
[400359434,1767433839486,-269.09233947,0.00014368,2]
[400359435,1767433839495,-420.0,0.00014449,2]
[400359436,1767433839503,-267.0,0.000146,2]
[400359437,1767433839513,-1500.0,0.00014695,2]
[400359438,1767433839522,-100000.0,0.00014736,2]
[400359439,1767433839530,-1080.92186024,0.0001476,2]
[400359440,1767433839540,-1500.0,0.00014795,2]
[400359441,1767433839550,-223.98,0.00014852,2]
[400359442,1767433839558,-267.0,0.000149,2]
[400359443,1767433839567,-1000.0,0.00015,2]
[400359444,1767433839576,-305.55435505,0.00015003,2]
[400359445,1767433839585,-462.094743,0.00015068,2]
[400359446,1767433839594,-800.0,0.00015068,2]
[400359447,1767433839603,-250.0,0.00015106,2]
[400359448,1767433839612,-267.0,0.000152,2]
[400359449,1767433839621,-2000.0,0.00015342,2]
[400359450,1767433839630,-267.0,0.000155,2]
[400359451,1767433839639,-152.42,0.00015541,2]
[400359452,1767433839650,-1422.827,0.00015713,2]
[400359453,1767433839659,-2176.266,0.00015713,2]
[400359454,1767433839668,-416.0,0.00015713,2]
[400359455,1767433839678,-268.78,0.00015842,2]
[400359456,1767433839687,-352.0,0.00015843,2]
[400359457,1767433839697,-2500.0,0.0001589,2]
[400359458,1767433839706,-267.0,0.000159,2]
[400359459,1767433839715,-1093.84384208,0.00016164,2]
[400359460,1767433839724,-267.0,0.000162,2]
[400359461,1767433839733,-16891.83577309,0.00016338,2]
[400359462,1767433839742,-500.0,0.00016356,2]
[400359463,1767433839752,-500.0,0.00016411,2]
[400359464,1767433839761,-500.0,0.00016411,2]
[400359465,1767433839770,-500.0,0.00016411,2]
[400359466,1767433839780,-500.0,0.00016411,2]
[400359467,1767433839789,-500.0,0.00016411,2]
[400359468,1767433839799,-500.0,0.00016411,2]
[400359469,1767433839808,-500.0,0.00016411,2]
[400359470,1767433839818,-500.0,0.00016411,2]
[400359471,1767433839827,-500.0,0.00016411,2]
[400359472,1767433839836,-500.0,0.00016411,2]
[400359473,1767433839846,-500.0,0.00016411,2]
[400359474,1767433839855,-500.0,0.00016411,2]
[400359475,1767433839864,-500.0,0.00016411,2]
[400359476,1767433839873,-500.0,0.00016411,2]
[400359477,1767433839882,-500.0,0.00016411,2]
[400359478,1767433839891,-500.0,0.00016411,2]
[400359479,1767433839901,-484.05461293,0.00016411,2]
[400359480,1767433839910,-972.294013,0.00016438,2]
[400359481,1767433839919,-972.294013,0.00016438,2]
[400359482,1767433839930,-972.294013,0.00016438,2]
[400359483,1767433839939,-972.294013,0.00016438,2]
[400359484,1767433839948,-972.294013,0.00016438,2]
[400359485,1767433839958,-972.294013,0.00016438,2]
[400359486,1767433839967,-972.294013,0.00016438,2]
[400359487,1767433839976,-972.294013,0.00016438,2]
[400359488,1767433839985,-850.3,0.00016438,2]
[400359489,1767433839994,-151.0,0.00016438,2]
[400359490,1767433840003,-2633.00095935,0.00016438,2]
[400359491,1767433840012,-2633.00095935,0.00016438,2]
[400359493,1767433840022,-2633.00095935,0.00016438,2]
[400359496,1767433840031,-2633.00095935,0.00016438,2]
[400359499,1767433840041,-2633.00095935,0.00016438,2]
[400359501,1767433840051,-2633.00095935,0.00016438,2]
[400359503,1767433840060,-2633.00095935,0.00016438,2]
[400359504,1767433840069,-2633.00095935,0.00016438,2]
[400359505,1767433840078,-2633.00095935,0.00016438,2]
[400359506,1767433840087,-2633.00095935,0.00016438,2]
[400359507,1767433840096,-2633.00095935,0.00016438,2]
[400359508,1767433840105,-2633.00095935,0.00016438,2]
[400359510,1767433840197,-2633.00095935,0.00016438,2]
[400359511,1767433840207,-2633.00095935,0.00016438,2]
[400359512,1767433840217,-2633.00095935,0.00016438,2]
[400359513,1767433840226,-2633.00095935,0.00016438,2]
[400359514,1767433840236,-2633.00095935,0.00016438,2]
[400359515,1767433840245,-2633.00095935,0.00016438,2]
[400359516,1767433840254,-2633.00095935,0.00016438,2]
[400359517,1767433840263,-2633.00095935,0.00016438,2]
[400359518,1767433840272,-2633.00095935,0.00016438,2]
[400359519,1767433840281,-2633.00095935,0.00016438,2]
[400359520,1767433840290,-2633.00095935,0.00016438,2]
[400359521,1767433840299,-2633.00095935,0.00016438,2]
[400359522,1767433840308,-2633.00095935,0.00016438,2]
[400359523,1767433840318,-2633.00095935,0.00016438,2]
[400359524,1767433840328,-2633.00095935,0.00016438,2]
[400359525,1767433840337,-2633.00095935,0.00016438,2]
[400359526,1767433840346,-2633.00095935,0.00016438,2]
[400359527,1767433840356,-2633.00095935,0.00016438,2]
[400359528,1767433840365,-2633.00095935,0.00016438,2]
[400359529,1767433840375,-2633.00095935,0.00016438,2]
[400359530,1767433840386,-2633.00095935,0.00016438,2]
[400359532,1767433840399,-2633.00095935,0.00016438,2]
[400359534,1767433840408,-2633.00095935,0.00016438,2]
[400359536,1767433840418,-2633.00095935,0.00016438,2]
[400359537,1767433840427,-2633.00095935,0.00016438,2]
[400359539,1767433840438,-2633.00095935,0.00016438,2]
[400359541,1767433840447,-2633.00095935,0.00016438,2]
[400359542,1767433840456,-2633.00095935,0.00016438,2]
[400359543,1767433840466,-2633.00095935,0.00016438,2]
[400359544,1767433840475,-2633.00095935,0.00016438,2]
[400359545,1767433840483,-2633.00095935,0.00016438,2]
[400359546,1767433840492,-2633.00095935,0.00016438,2]
[400359547,1767433840501,-2633.00095935,0.00016438,2]
[400359548,1767433840511,-2633.00095935,0.00016438,2]
[400359549,1767433840520,-2633.00095935,0.00016438,2]
[400359550,1767433840529,-2633.00095935,0.00016438,2]
[400359551,1767433840538,-2633.00095935,0.00016438,2]
[400359552,1767433840547,-2633.00095935,0.00016438,2]
[400359553,1767433840556,-2633.00095935,0.00016438,2]
[400359554,1767433840565,-2633.00095935,0.00016438,2]
[400359555,1767433840574,-2633.00095935,0.00016438,2]
[400359556,1767433840583,-2633.00095935,0.00016438,2]
[400359557,1767433840592,-2633.00095935,0.00016438,2]
[400359558,1767433840601,-2633.00095935,0.00016438,2]
[400359559,1767433840610,-2633.00095935,0.00016438,2]
[400359560,1767433840619,-2633.00095935,0.00016438,2]
[400359561,1767433840628,-2633.00095935,0.00016438,2]
[400359562,1767433840637,-2633.00095935,0.00016438,2]
[400359563,1767433840647,-154.76883189,0.00016438,2]
[400359564,1767433840656,-151.0,0.00016438,2]
[400359565,1767433840664,-151.0,0.00016438,2]
[400359566,1767433840674,-151.0,0.00016438,2]
[400359567,1767433840683,-151.0,0.00016438,2]
[400359568,1767433840692,-151.0,0.00016438,2]
[400359569,1767433840702,-151.0,0.00016438,2]
[400359570,1767433840711,-151.0,0.00016438,2]
[400359571,1767433840720,-151.0,0.00016438,2]
[400359572,1767433840729,-151.0,0.00016438,2]
[400359573,1767433840738,-151.0,0.00016438,2]
[400359574,1767433840747,-151.0,0.00016438,2]
[400359575,1767433840756,-153.207208,0.00016438,2]
[400359576,1767433840766,-164.0102757,0.00016438,2]
[400359577,1767433840774,-364.58115,0.00016438,2]
[400359578,1767433840783,-364.58115,0.00016438,2]
[400359579,1767433840792,-364.58115,0.00016438,2]
[400359580,1767433840801,-364.58115,0.00016438,2]
[400359581,1767433840810,-364.58115,0.00016438,2]
[400359582,1767433840819,-364.58115,0.00016438,2]
[400359583,1767433840828,-364.58115,0.00016438,2]
[400359584,1767433840837,-364.58115,0.00016438,2]
[400359585,1767433840846,-3000.0,0.00016438,2]
[400359586,1767433840855,-259.79445274,0.00016438,2]
[400359587,1767433840864,-200.0,0.00016473,2]
[400359588,1767433840872,-267.0,0.000165,2]
[400359589,1767433840881,-2791.6313678,0.00016599,2]
[400359590,1767433840891,-850.3,0.00016712,2]
[400359591,1767433840900,-267.0,0.000168,2]
[400359592,1767433840909,-160.0,0.00016822,3]
[400359593,1767433840918,-160.0,0.00016822,5]
[400359594,1767433840928,-313.57,0.00016832,2]
[400359595,1767433840937,-364.58115,0.00016879,2]
[400359596,1767433840947,-364.58115,0.00016879,2]
[400359597,1767433840956,-364.58115,0.00016879,2]
[400359598,1767433840965,-364.58115,0.00016879,2]
[400359599,1767433840974,-587.46816348,0.00016879,5]
[400359600,1767433840983,-850.3,0.00016986,2]
[400359601,1767433840991,-255.06458157,0.00016986,3]
[400359602,1767433841001,-3500.0,0.00016986,2]
[400359603,1767433841010,-352.16434141,0.00017003,2]
[400359604,1767433841020,-2674.60743027,0.0001704,2]
[400359605,1767433841029,-151.0,0.0001704,2]
[400359606,1767433841038,-250.0,0.0001704,2]
[400359607,1767433841047,-287.42306704,0.0001704,2]
[400359608,1767433841055,-151.54965873,0.0001704,2]
[400359609,1767433841065,-250.0,0.0001704,2]
[400359610,1767433841073,-259.22233123,0.0001704,2]
[400359611,1767433841082,-269.61503092,0.0001704,2]
[400359612,1767433841092,-251.79035134,0.0001704,2]
[400359613,1767433841101,-1000.0,0.000171,2]
[400359614,1767433841110,-1000.0,0.000171,2]
[400359615,1767433841119,-1000.0,0.000171,2]
[400359616,1767433841128,-1000.0,0.000171,2]
[400359617,1767433841137,-1000.0,0.000171,2]
[400359618,1767433841146,-1000.0,0.000171,2]
[400359619,1767433841155,-1000.0,0.000171,2]
[400359620,1767433841164,-1000.0,0.000171,2]
[400359621,1767433841173,-1000.0,0.000171,2]
[400359622,1767433841183,-1000.0,0.000171,2]
[400359623,1767433841192,-250.0,0.00017177,2]
[400359624,1767433841200,-267.0,0.000172,2]
[400359625,1767433841210,-850.3,0.0001726,2]
[400359626,1767433841219,-152.0,0.0001726,3]
[400359627,1767433841228,-386.0,0.00017465,2]
[400359628,1767433841237,-267.0,0.000175,2]
[400359629,1767433841246,-850.3,0.00017534,2]
[400359630,1767433841255,-4000.0,0.00017534,2]
[400359631,1767433841265,-1777.63164565,0.0001761,2]
[400359632,1767433841275,-1539.11597168,0.0001764,2]
[400359633,1767433841284,-478.0,0.0001766,2]
[400359634,1767433841293,-204.00930791,0.00017673,2]
[400359635,1767433841385,-366.84953749,0.00017673,2]
[400359636,1767433841399,-425.33299207,0.00017673,2]
[400359637,1767433841409,-972.294013,0.000178,2]
[400359638,1767433841418,-972.294013,0.000178,2]
[400359639,1767433841428,-972.294013,0.000178,2]
[400359640,1767433841438,-972.294013,0.000178,2]
[400359641,1767433841447,-151.0,0.000178,2]
[400359642,1767433841455,-151.0,0.000178,2]
[400359643,1767433841466,-151.0,0.000178,2]
[400359644,1767433841475,-214285.72,0.000178,3]
[400359645,1767433841484,-364.58115,0.000178,2]
[400359646,1767433841493,-364.58115,0.000178,2]
[400359647,1767433841502,-364.58115,0.000178,2]
[400359648,1767433841511,-364.58115,0.000178,2]
[400359649,1767433841520,-267.0,0.000178,2]
[400359650,1767433841529,-850.3,0.00017808,2]
[400359651,1767433841538,-358.37,0.00017822,2]
[400359652,1767433841547,-567.0,0.00017838,2]
[400359653,1767433841557,-400.0,0.00017842,2]
[400359654,1767433841566,-33520.05896575,0.00018,2]
[400359655,1767433841575,-850.3,0.00018082,2]
[400359656,1767433841584,-196.0,0.00018082,3]
[400359657,1767433841593,-4500.0,0.00018082,2]
[400359658,1767433841602,-267.0,0.000181,2]
[400359659,1767433841611,-600.0,0.00018155,2]
[400359660,1767433841621,-168.0,0.00018212,2]
[400359661,1767433841630,-850.3,0.00018356,2]
[400359662,1767433841640,-168.0,0.00018366,2]
[400359663,1767433841649,-150.0,0.00018377,2]
[400359664,1767433841658,-2297.267675,0.00018479,2]
[400359665,1767433841667,-462.094743,0.00018493,2]
[400359666,1767433841676,-267.0,0.000185,2]
[400359667,1767433841685,-168.0,0.00018538,2]
[400359668,1767433841694,-850.3,0.0001863,2]
[400359669,1767433841703,-2217.82865763,0.0001863,2]
[400359670,1767433841712,-16891.83577304,0.00018633,2]
[400359671,1767433841721,-902.11137526,0.00018713,2]
[400359672,1767433841730,-416.0,0.00018713,2]
[400359673,1767433841739,-176.90419123,0.00018788,30]
[400359674,1767433841748,-267.0,0.000188,2]
[400359675,1767433841757,-403.16,0.00018812,2]
[400359676,1767433841766,-176.90419123,0.00018862,30]
[400359677,1767433841775,-21841.10563604,0.000189,2]
[400359678,1767433841784,-303.04242473,0.000189,2]
[400359679,1767433841793,-303.03939421,0.000189,2]
[400359680,1767433841802,-35714.28,0.000189,3]
[400359681,1767433841811,-850.3,0.00018904,2]
[400359682,1767433841819,-176.90419123,0.00018937,30]
[400359683,1767433841828,-1000.0,0.00019,19]
[400359684,1767433841837,-543.06,0.00019,14]
[400359685,1767433841847,-2000.0,0.00019,14]
[400359686,1767433841856,-2000.0,0.00019,14]
[400359687,1767433841866,-2023.17,0.00019,14]
[400359688,1767433841874,-876.71188476,0.00019,2]
[400359689,1767433841884,-20000.0,0.00019,2]
[400359690,1767433841893,-561.96649894,0.00019,2]
[400359691,1767433841902,-19455.30569676,0.00019,2]
[400359692,1767433841911,-398.77432778,0.00019003,2]
[400359693,1767433841920,-168.0,0.00019008,2]
[400359694,1767433841929,-176.90419123,0.00019011,30]
[400359695,1767433841938,-168.0,0.0001902,2]
[400359696,1767433841947,-10000.0,0.00019078,2]
[400359697,1767433841956,-176.90419123,0.00019085,30]
[400359698,1767433841965,-303.04242473,0.00019089,2]
[400359699,1767433841974,-303.03939421,0.00019089,2]
[400359700,1767433841983,-500.0,0.00019096,7]
[400359701,1767433841992,-267.0,0.000191,2]
[400359702,1767433842001,-176.90419123,0.0001916,30]
[400359703,1767433842010,-537.75,0.00019178,2]
[400359704,1767433842019,-267.21,0.00019178,2]
[400359705,1767433842028,-267.21,0.00019178,2]
[400359706,1767433842037,-267.21,0.00019178,2]
[400359707,1767433842046,-267.21,0.00019178,2]
[400359708,1767433842055,-267.18,0.00019178,2]
[400359709,1767433842064,-267.12,0.00019178,2]
[400359710,1767433842073,-267.09,0.00019178,2]
[400359711,1767433842082,-267.15,0.00019178,2]
[400359712,1767433842091,-587.8103,0.00019178,2]
[400359713,1767433842100,-347.48,0.00019178,2]
[400359714,1767433842109,-332.73,0.00019178,2]
[400359715,1767433842118,-332.73,0.00019178,2]
[400359716,1767433842127,-253.36,0.00019178,2]
[400359717,1767433842136,-253.36,0.00019178,2]
[400359718,1767433842145,-280.12,0.00019178,2]
[400359719,1767433842154,-306.88,0.00019178,2]
[400359720,1767433842163,-306.88,0.00019178,2]
[400359721,1767433842172,-294.71,0.00019178,2]
[400359722,1767433842181,-215.51,0.00019178,2]
[400359723,1767433842190,-215.51,0.00019178,2]
[400359724,1767433842199,-215.51,0.00019178,2]
[400359725,1767433842208,-215.51,0.00019178,2]
[400359726,1767433842217,-215.51,0.00019178,2]
[400359727,1767433842226,-215.51,0.00019178,2]
[400359728,1767433842235,-215.51,0.00019178,2]
[400359729,1767433842244,-215.51,0.00019178,2]
[400359730,1767433842253,-450.69,0.00019178,2]
[400359731,1767433842262,-235.18,0.00019178,2]
[400359732,1767433842271,-235.18,0.00019178,2]
[400359733,1767433842280,-215.52,0.00019178,2]
[400359734,1767433842289,-215.52,0.00019178,2]
[400359735,1767433842298,-215.52,0.00019178,2]
[400359736,1767433842307,-215.52,0.00019178,2]
[400359737,1767433842315,-215.52,0.00019178,2]
[400359738,1767433842326,-587.8103,0.00019178,2]
[400359739,1767433842335,-235.15,0.00019178,2]
[400359740,1767433842346,-293.8997,0.00019178,3]
[400359741,1767433842356,-313.54,0.00019178,2]
[400359742,1767433842365,-293.8997,0.00019178,3]
[400359743,1767433842375,-487.95,0.00019178,2]
[400359744,1767433842384,-429.19,0.00019178,2]
[400359745,1767433842400,-429.19,0.00019178,2]
[400359746,1767433842493,-430.67,0.00019178,2]
[400359747,1767433842502,-499.19,0.00019178,2]
[400359748,1767433842511,-499.19,0.00019178,2]
[400359749,1767433842520,-881.7745,0.00019178,2]
[400359750,1767433842529,-382.52,0.00019178,2]
[400359751,1767433842539,-499.1255,0.00019178,4]
[400359752,1767433842548,-382.47,0.00019178,2]
[400359753,1767433842557,-151.0,0.00019178,2]
[400359754,1767433842566,-151.0,0.00019178,2]
[400359755,1767433842575,-152.42,0.00019178,2]
[400359756,1767433842585,-972.294013,0.00019178,2]
[400359757,1767433842594,-972.294013,0.00019178,2]
[400359758,1767433842603,-972.294013,0.00019178,2]
[400359759,1767433842612,-972.294013,0.00019178,2]
[400359760,1767433842621,-151.0,0.00019178,2]
[400359761,1767433842630,-151.0,0.00019178,2]
[400359762,1767433842639,-151.0,0.00019178,2]
[400359763,1767433842648,-850.3,0.00019178,2]
[400359764,1767433842657,-364.58115,0.00019178,2]
[400359765,1767433842666,-364.58115,0.00019178,2]
[400359766,1767433842675,-364.58115,0.00019178,2]
[400359767,1767433842684,-364.58116,0.00019178,2]
[400359768,1767433842694,-5000.0,0.00019178,2]
[400359769,1767433842703,-5000.0,0.00019178,2]
[400359770,1767433842711,-5000.0,0.00019178,2]
[400359771,1767433842721,-5000.0,0.00019178,2]
[400359772,1767433842729,-5000.0,0.00019178,2]
[400359773,1767433842738,-5000.0,0.00019178,2]
[400359774,1767433842747,-5000.0,0.00019178,2]
[400359775,1767433842756,-5000.0,0.00019178,2]
[400359776,1767433842765,-5000.0,0.00019178,2]
[400359777,1767433842775,-5000.0,0.00019178,2]
[400359778,1767433842784,-5000.0,0.00019178,2]
[400359779,1767433842792,-5000.0,0.00019178,2]
[400359780,1767433842802,-5000.0,0.00019178,2]
[400359781,1767433842811,-5000.0,0.00019178,2]
[400359782,1767433842819,-5000.0,0.00019178,2]
[400359783,1767433842828,-5000.0,0.00019178,2]
[400359784,1767433842837,-5000.0,0.00019178,2]
[400359785,1767433842847,-5000.0,0.00019178,2]
[400359786,1767433842856,-1973.55132122,0.00019178,2]
[400359787,1767433842866,-151.0,0.00019178,2]
[400359788,1767433842875,-151.0,0.00019178,2]
[400359789,1767433842885,-151.0,0.00019178,2]
[400359790,1767433842894,-151.0,0.00019178,2]
[400359791,1767433842903,-151.0,0.00019178,2]
[400359792,1767433842912,-151.0,0.00019178,2]
[400359793,1767433842921,-151.0,0.00019178,2]
[400359794,1767433842931,-151.0,0.00019178,2]
[400359795,1767433842940,-151.0,0.00019178,2]
[400359796,1767433842965,-151.0,0.00019178,2]
[400359797,1767433842986,-151.0,0.00019178,2]
[400359798,1767433843008,-151.0,0.00019178,2]
[400359799,1767433843029,-151.0,0.00019178,2]
[400359800,1767433843051,-151.0,0.00019178,2]
[400359801,1767433843069,-222.256542,0.00019178,2]
[400359802,1767433843090,-1104.030292,0.00019178,2]
[400359803,1767433843106,-1104.030292,0.00019178,2]
[400359804,1767433843124,-1104.030292,0.00019178,2]
[400359805,1767433843143,-1104.030292,0.00019178,2]
[400359806,1767433843165,-1104.030292,0.00019178,2]
[400359807,1767433843183,-1104.030292,0.00019178,2]
[400359808,1767433843197,-1104.030292,0.00019178,2]
[400359809,1767433843219,-1104.030292,0.00019178,2]
[400359810,1767433843234,-1104.030292,0.00019178,2]
[400359811,1767433843251,-1104.030292,0.00019178,2]
[400359812,1767433843265,-1104.030292,0.00019178,2]
[400359813,1767433843280,-1104.030292,0.00019178,2]
[400359814,1767433843295,-1104.030292,0.00019178,2]
[400359815,1767433843311,-1104.030292,0.00019178,2]
[400359816,1767433843326,-1104.030292,0.00019178,2]
[400359817,1767433843341,-1104.030292,0.00019178,2]
[400359818,1767433843358,-1104.030292,0.00019178,2]
[400359819,1767433843374,-1104.030292,0.00019178,2]
[400359820,1767433843390,-1104.030292,0.00019178,2]
[400359821,1767433843409,-1104.030293,0.00019178,2]
[400359822,1767433843425,-197.0,0.00019178,3]
[400359823,1767433843444,-30191.22090472,0.000192,2]
[400359824,1767433843462,-250.16,0.000192,2]
[400359825,1767433843478,-167.67,0.000192,2]
[400359826,1767433843494,-253.93,0.000192,2]
[400359827,1767433843510,-44933.71,0.000192,2]
[400359828,1767433843526,-2667.76,0.000192,2]
[400359829,1767433843541,-279.41786474,0.00019212,2]
[400359830,1767433843557,-176.90419123,0.00019234,30]
[400359831,1767433843573,-303.04242473,0.00019278,2]
[400359832,1767433843589,-303.03939421,0.00019278,2]
[400359833,1767433843605,-176.90419123,0.00019309,30]
[400359834,1767433843622,-300.0,0.00019315,2]
[400359835,1767433843639,-176.90419123,0.00019383,30]
[400359836,1767433843655,-267.0,0.000194,2]
[400359837,1767433843671,-850.3,0.00019452,2]
[400359838,1767433843689,-450.0,0.00019452,2]
[400359839,1767433843705,-176.90419123,0.00019458,30]
[400359840,1767433843721,-303.04242473,0.00019467,2]
[400359841,1767433843737,-303.03939421,0.00019467,2]
[400359842,1767433843754,-376.6159482,0.00019488,2]
[400359843,1767433843767,-336.01796333,0.00019532,30]
[400359844,1767433843777,-600.0,0.00019589,2]
[400359845,1767433843786,-6000.0,0.000196,2]
[400359846,1767433843796,-303.04242473,0.00019656,2]
[400359847,1767433843959,-303.03939421,0.00019656,2]
[400359848,1767433843984,-267.0,0.000197,2]
[400359849,1767433843994,-707.74183356,0.00019726,2]
[400359850,1767433844003,-1005.776843,0.0001978,5]
[400359851,1767433844012,-1000.0,0.000198,5]
[400359852,1767433844021,-1000.0,0.0001982,5]
[400359853,1767433844030,-1000.0,0.0001984,5]
[400359854,1767433844039,-454.56363709,0.00019845,4]
[400359855,1767433844048,-454.55909132,0.00019845,4]
[400359856,1767433844058,-1000.0,0.0001986,5]
[400359857,1767433844067,-1000.0,0.0001988,5]
[400359858,1767433844075,-151.0,0.000199,2]
[400359859,1767433844085,-151.0,0.000199,2]
[400359860,1767433844094,-1000.0,0.000199,5]
[400359861,1767433844103,-1000.0,0.0001992,5]
[400359862,1767433844113,-1000.0,0.0001994,5]
[400359863,1767433844122,-1000.0,0.0001996,5]
[400359864,1767433844131,-720.0,0.0001997,2]
[400359865,1767433844140,-1000.0,0.0001998,5]
[400359866,1767433844149,-2791.6313678,0.00019998,2]
[400359867,1767433844159,-601.57710056,0.0002,2]
[400359868,1767433844168,-371.08753666,0.0002,2]
[400359869,1767433844177,-531.48985913,0.0002,2]
[400359870,1767433844186,-23000.0,0.0002,2]
[400359871,1767433844195,-202.44226323,0.0002,2]
[400359872,1767433844204,-159.78376213,0.0002,2]
[400359873,1767433844213,-1006.0,0.0002,6]
[400359874,1767433844223,-154.70507547,0.0002,2]
[400359875,1767433844232,-1003.0,0.0002,2]
[400359876,1767433844241,-1951.84330632,0.0002,2]
[400359877,1767433844470,-447.96,0.00019802,2]
[400359878,1767433844479,-143.99824618,0.0002,2]
[400359879,1767433844988,-348.59139201,0.000175,2]
[400359908,1767433846456,-656.65520999,0.000175,2]
[400359910,1767433846468,-137.83789418,0.00017901,2]
[400359932,1767433864681,161.0,0.00028767,120]
[400359933,1767433906236,162.18,0.00011804,2]
[400359934,1767433906734,216.24,0.00012712,2]
[400359935,1767433982086,173.39,0.00012528,2]
[400359936,1767434028576,5000.0,0.00012978,2]
[400359937,1767434052456,4448.2,0.00012978,2]
[400359938,1767434052480,551.8,0.00012978,2]
[400359939,1767434058289,150.0,0.00011517,2]
[400359940,1767434058682,166.77,0.00012476,2]
[400359941,1767434076055,5000.0,0.00012978,2]
[400359942,1767434100427,256.8211994,0.00012978,2]
[400359943,1767434133271,150.0,0.00010044,2]
[400359944,1767434133894,150.0,0.00010958,2]
[400359945,1767434134376,154.68,0.00011871,2]
[400359946,1767434134846,206.23,0.00012784,2]
[400359947,1767434211822,150.0,9.993e-05,2]
[400359948,1767434212278,150.0,0.00010901,2]
[400359949,1767434212748,150.0,0.0001181,2]
[400359950,1767434213251,172.59,0.00012718,2]
[400359952,1767434288534,150.0,0.00010674,2]
[400359953,1767434288926,150.0,0.00011644,2]
[400359954,1767434289430,150.0,0.00012614,2]
[400359955,1767434362734,150.0,9.996e-05,2]
[400359956,1767434363215,150.0,0.00010905,2]
[400359957,1767434363683,150.0,0.00011814,2]
[400359958,1767434364093,150.0,0.00012723,2]
[400359959,1767434435608,150.0,0.00010185,2]
[400359960,1767434436059,150.0,0.00011111,2]
[400359961,1767434437090,150.0,0.00012037,2]
[400359962,1767434437271,150.0,0.00012963,2]
[400359963,1767434503376,164.04990726,0.00012916,2]
[400359964,1767434507014,150.0,0.00010282,2]
[400359965,1767434507430,150.0,0.00011216,2]
[400359966,1767434508003,150.0,0.00012151,2]
[400359971,1767434897904,9550.01,0.00012978,2]
[400359972,1767434897928,10000.01,0.00012978,2]
[400359973,1767434897952,10000.01,0.00012978,2]
[400359974,1767434897976,10000.01,0.00012978,2]
[400359975,1767434898000,10000.01,0.00012978,2]
[400359976,1767434898024,10000.01,0.00012978,2]
[400359977,1767434898048,10000.01,0.00012978,2]
[400359978,1767434898072,10000.01,0.00012978,2]
[400359979,1767434898096,10000.01,0.00012978,2]